[Event "Late-Titled-Tuesday-Blitz-May-07-2024"]
[Site "Chess.com"]
[Date "2024.05.07"]
[Round "1"]
[White "MarcoRiehle"]
[Black "stasOR4ik"]
[Result "0-1"]
[WhiteElo "2783"]
[BlackElo "2477"]
[TimeControl "180+1"]
[EndTime "14:06:54 PDT"]
[Termination "stasOR4ik won by resignation"]

1. e4 {[%clk 0:02:57.8]} 1... e6 {[%clk 0:03:00.9]} 2. c4 {[%clk 0:02:57.4]}
2... d5 {[%clk 0:03:01.8]} 3. cxd5 {[%clk 0:02:58.2]} 3... exd5 {[%clk
0:03:02.5]} 4. Qb3 {[%clk 0:02:58.9]} 4... Nf6 {[%clk 0:03:03.3]} 5. e5 {[%clk
0:02:58.5]} 5... Ne4 {[%clk 0:03:02]} 6. Nc3 {[%clk 0:02:58.9]} 6... Nc5 {[%clk
0:02:55.9]} 7. Qxd5 {[%clk 0:02:57.7]} 7... Nc6 {[%clk 0:02:31.2]} 8. Qxd8+
{[%clk 0:02:57.2]} 8... Kxd8 {[%clk 0:02:32.1]} 9. f4 {[%clk 0:02:52.6]} 9...
Nd4 {[%clk 0:02:24]} 10. Kd1 {[%clk 0:02:49]} 10... Bg4+ {[%clk 0:02:20.4]} 11.
Nge2 {[%clk 0:02:48.3]} 11... Nd3 {[%clk 0:02:18.6]} 12. h3 {[%clk 0:02:40.8]}
12... Bxe2+ {[%clk 0:02:04.9]} 13. Bxe2 {[%clk 0:02:38.8]} 13... Nf2+ {[%clk
0:02:03.6]} 14. Ke1 {[%clk 0:02:37.3]} 14... Nxh1 {[%clk 0:02:03.2]} 15. Bd3
{[%clk 0:02:37.4]} 15... Ng3 {[%clk 0:02:00.2]} 16. Kf2 {[%clk 0:02:36.2]} 16...
Ngf5 {[%clk 0:01:47.6]} 17. Ne4 {[%clk 0:02:30.6]} 17... h5 {[%clk 0:01:40.7]}
18. b3 {[%clk 0:02:29.9]} 18... a5 {[%clk 0:01:21.4]} 19. Bb2 {[%clk 0:02:29.1]}
19... a4 {[%clk 0:01:21.7]} 20. g4 {[%clk 0:02:25.4]} 20... hxg4 {[%clk
0:01:10.3]} 21. hxg4 {[%clk 0:02:26.3]} 21... Rh2+ {[%clk 0:01:06.2]} 22. Kf1
{[%clk 0:02:25.1]} 22... Rh1+ {[%clk 0:00:46.7]} 23. Kg2 {[%clk 0:02:25.5]}
23... Rxa1 {[%clk 0:00:43.8]} 24. Bxa1 {[%clk 0:02:25.2]} 24... Nh4+ {[%clk
0:00:41]} 25. Kf2 {[%clk 0:02:17.4]} 25... Nhf3 {[%clk 0:00:32.7]} 26. b4 {[%clk
0:02:16.9]} 26... Bxb4 {[%clk 0:00:31.3]} 27. Ke3 {[%clk 0:02:03]} 27... c5
{[%clk 0:00:31]} 28. Bc4 {[%clk 0:02:03.3]} 28... Ke7 {[%clk 0:00:30.7]} 29. g5
{[%clk 0:02:00.4]} 29... Nc2+ {[%clk 0:00:28.5]} 30. Kxf3 {[%clk 0:02:00.3]}
30... Nxa1 {[%clk 0:00:28.9]} 31. f5 {[%clk 0:01:59.8]} 31... Nc2 {[%clk
0:00:27.6]} 32. f6+ {[%clk 0:01:59.8]} 32... gxf6 {[%clk 0:00:27.5]} 33. exf6+
{[%clk 0:01:54.6]} 33... Kf8 {[%clk 0:00:25.4]} 34. g6 {[%clk 0:01:52.9]} 34...
Nd4+ {[%clk 0:00:24.3]} 35. Kg4 {[%clk 0:01:53]} 35... fxg6 {[%clk 0:00:21.8]}
36. Ng5 {[%clk 0:01:52.5]} 36... b5 {[%clk 0:00:11.7]} 37. Bd5 {[%clk
0:01:25.7]} 37... Rd8 {[%clk 0:00:10.1]} 38. Nh7+ {[%clk 0:01:26.4]} 38... Ke8
{[%clk 0:00:10.1]} 39. Bg8 {[%clk 0:01:26.2]} 39... Kd7 {[%clk 0:00:09.7]} 40.
f7 {[%clk 0:01:20.4]} 40... Ke7 {[%clk 0:00:10.2]} 41. Kg5 {[%clk 0:01:20.6]}
41... Ne6+ {[%clk 0:00:10.4]} 42. Kxg6 {[%clk 0:01:21.1]} 42... Nf8+ {[%clk
0:00:10.8]} 43. Kg7 {[%clk 0:01:20.6]} 43... Nxh7 {[%clk 0:00:10.9]} 44. Bxh7
{[%clk 0:01:21.1]} 44... Rf8 {[%clk 0:00:11.3]} 45. Bd3 {[%clk 0:01:20.8]} 45...
Bxd2 {[%clk 0:00:11.4]} 46. Kg6 {[%clk 0:01:21.7]} 46... Bc3 {[%clk 0:00:10.9]}
47. Bxb5 {[%clk 0:01:22.1]} 47... Rxf7 {[%clk 0:00:11.2]} 48. Bxa4 {[%clk
0:01:22.4]} 48... Rf2 {[%clk 0:00:11.8]} 49. Bb3 {[%clk 0:01:23]} 49... Kd6
{[%clk 0:00:12.5]} 50. Kg5 {[%clk 0:01:23.3]} 50... Ke5 {[%clk 0:00:12.8]} 51.
Kg4 {[%clk 0:01:23]} 51... Be1 {[%clk 0:00:13.4]} 52. a4 {[%clk 0:01:22.4]}
52... Kd4 {[%clk 0:00:13.7]} 53. a5 {[%clk 0:01:21.9]} 53... Bxa5 {[%clk
0:00:12.2]} 54. Kg3 {[%clk 0:01:22.3]} 54... Be1 {[%clk 0:00:12.5]} 0-1

[Event "Late-Titled-Tuesday-Blitz-May-07-2024"]
[Site "Chess.com"]
[Date "2024.05.07"]
[Round "1"]
[White "BigAl"]
[Black "ChristopherYoo"]
[Result "0-1"]
[WhiteElo "2540"]
[BlackElo "2993"]
[TimeControl "180+1"]
[EndTime "14:06:55 PDT"]
[Termination "ChristopherYoo won by checkmate"]

1. Nf3 {[%clk 0:02:56.1]} 1... d5 {[%clk 0:02:53.5]} 2. g3 {[%clk 0:02:56.4]}
2... Nc6 {[%clk 0:02:47.7]} 3. Bg2 {[%clk 0:02:56.4]} 3... e5 {[%clk 0:02:47.5]}
4. d3 {[%clk 0:02:57.3]} 4... Nf6 {[%clk 0:02:46.1]} 5. O-O {[%clk 0:02:57.5]}
5... Be7 {[%clk 0:02:46.2]} 6. Nbd2 {[%clk 0:02:46.8]} 6... O-O {[%clk
0:02:45.8]} 7. e4 {[%clk 0:02:47]} 7... Re8 {[%clk 0:02:32.5]} 8. c3 {[%clk
0:02:46]} 8... a5 {[%clk 0:02:28.1]} 9. a4 {[%clk 0:02:44.9]} 9... dxe4 {[%clk
0:02:19]} 10. dxe4 {[%clk 0:02:45]} 10... b6 {[%clk 0:02:19.1]} 11. Re1 {[%clk
0:02:41.5]} 11... Ba6 {[%clk 0:02:18.5]} 12. Qb3 {[%clk 0:02:39.9]} 12... Nd7
{[%clk 0:01:50.5]} 13. Qd5 {[%clk 0:02:25.1]} 13... Bb7 {[%clk 0:01:49]} 14. Nc4
{[%clk 0:02:12]} 14... Nd4 {[%clk 0:01:43.6]} 15. Qxb7 {[%clk 0:02:07.1]} 15...
Nc2 {[%clk 0:01:41.8]} 16. Be3 {[%clk 0:02:03.5]} 16... Nxa1 {[%clk 0:01:41.5]}
17. Rxa1 {[%clk 0:02:03.5]} 17... Nc5 {[%clk 0:01:27]} 18. Bxc5 {[%clk
0:02:03.3]} 18... Bxc5 {[%clk 0:01:25.9]} 19. Ncxe5 {[%clk 0:01:53.5]} 19... f6
{[%clk 0:01:14.1]} 20. Nc4 {[%clk 0:01:49.1]} 20... Kh8 {[%clk 0:01:04.2]} 21.
e5 {[%clk 0:01:39.8]} 21... f5 {[%clk 0:01:02.8]} 22. h4 {[%clk 0:01:35.6]}
22... h6 {[%clk 0:00:59.5]} 23. Qc6 {[%clk 0:01:23.4]} 23... Qd3 {[%clk
0:00:56]} 24. Bf1 {[%clk 0:01:01.3]} 24... Qc2 {[%clk 0:00:53.4]} 25. Ncd2
{[%clk 0:00:50.4]} 25... Qxb2 {[%clk 0:00:42.9]} 26. Re1 {[%clk 0:00:50.3]}
26... Qxc3 {[%clk 0:00:42.5]} 27. Qg6 {[%clk 0:00:50.6]} 27... Rad8 {[%clk
0:00:37.3]} 28. e6 {[%clk 0:00:29.1]} 28... Re7 {[%clk 0:00:33.5]} 29. Qxf5
{[%clk 0:00:25.7]} 29... Rxd2 {[%clk 0:00:25]} 30. Nxd2 {[%clk 0:00:25.8]} 30...
Qxd2 {[%clk 0:00:25.9]} 31. Re4 {[%clk 0:00:19.1]} 31... Re8 {[%clk 0:00:22.1]}
32. Rg4 {[%clk 0:00:19]} 32... Rf8 {[%clk 0:00:18.8]} 33. Qe4 {[%clk 0:00:13.8]}
33... Qxf2+ {[%clk 0:00:18.6]} 34. Kh1 {[%clk 0:00:14.3]} 34... Qg1# {[%clk
0:00:19.5]} 0-1

[Event "Late-Titled-Tuesday-Blitz-May-07-2024"]
[Site "Chess.com"]
[Date "2024.05.07"]
[Round "1"]
[White "Polish_fighter3000"]
[Black "wannabe2700"]
[Result "1-0"]
[WhiteElo "3127"]
[BlackElo "2559"]
[TimeControl "180+1"]
[EndTime "14:07:03 PDT"]
[Termination "Polish_fighter3000 won by resignation"]

1. b3 {[%clk 0:03:00]} 1... a5 {[%clk 0:03:00.9]} 2. Bb2 {[%clk 0:02:58.9]} 2...
Ra6 {[%clk 0:03:01.8]} 3. e4 {[%clk 0:02:57.3]} 3... e6 {[%clk 0:02:59.8]} 4.
Bxa6 {[%clk 0:02:56.3]} 4... Nxa6 {[%clk 0:03:00.7]} 5. Nf3 {[%clk 0:02:55.4]}
5... b6 {[%clk 0:03:00.9]} 6. O-O {[%clk 0:02:55.3]} 6... Bb7 {[%clk 0:03:01.4]}
7. Re1 {[%clk 0:02:55.3]} 7... Nf6 {[%clk 0:03:01.2]} 8. d3 {[%clk 0:02:55.3]}
8... d5 {[%clk 0:02:58]} 9. Nbd2 {[%clk 0:02:55.7]} 9... Be7 {[%clk 0:02:57.4]}
10. exd5 {[%clk 0:02:46.4]} 10... Nxd5 {[%clk 0:02:49.4]} 11. Bxg7 {[%clk
0:02:34.6]} 11... Rg8 {[%clk 0:02:49.3]} 12. Be5 {[%clk 0:02:35.3]} 12... f6
{[%clk 0:02:45.9]} 13. Bg3 {[%clk 0:02:35.6]} 13... Nc3 {[%clk 0:02:36.2]} 14.
Qc1 {[%clk 0:02:35]} 14... e5 {[%clk 0:02:07.9]} 15. Qb2 {[%clk 0:02:26.3]}
15... Nd5 {[%clk 0:02:07.6]} 16. d4 {[%clk 0:02:25.2]} 16... a4 {[%clk
0:01:49.5]} 17. bxa4 {[%clk 0:02:23.1]} 17... Bb4 {[%clk 0:01:45.5]} 18. dxe5
{[%clk 0:02:20.6]} 18... f5 {[%clk 0:01:42.6]} 19. c4 {[%clk 0:02:04.3]} 19...
Bc3 {[%clk 0:01:41]} 20. Qc1 {[%clk 0:01:58.9]} 20... Bxa1 {[%clk 0:01:38]} 21.
cxd5 {[%clk 0:01:58.3]} 21... Qxd5 {[%clk 0:01:28.1]} 22. Qxa1 {[%clk
0:01:54.6]} 22... f4 {[%clk 0:01:28.2]} 23. Bxf4 {[%clk 0:01:52.3]} 23... Nb4
{[%clk 0:01:25.7]} 24. Re4 {[%clk 0:01:37.8]} 24... Nc2 {[%clk 0:01:11.5]} 25.
Qb2 {[%clk 0:01:28.2]} 25... Qd3 {[%clk 0:01:10.9]} 26. Qb3 {[%clk 0:01:16.3]}
26... Qxb3 {[%clk 0:00:50.9]} 27. axb3 {[%clk 0:01:17.2]} 27... Bxe4 {[%clk
0:00:48.6]} 28. Nxe4 {[%clk 0:01:18.1]} 28... Ke7 {[%clk 0:00:45.9]} 29. g3
{[%clk 0:01:08.7]} 29... c5 {[%clk 0:00:39.2]} 30. h4 {[%clk 0:01:04.5]} 30...
Na1 {[%clk 0:00:29.9]} 31. Nfd2 {[%clk 0:01:02.1]} 31... h5 {[%clk 0:00:20.2]}
32. Nf6 {[%clk 0:00:46.5]} 32... Rh8 {[%clk 0:00:19.7]} 33. Nd5+ {[%clk
0:00:45.8]} 33... Ke6 {[%clk 0:00:19.2]} 34. Nxb6 {[%clk 0:00:46.7]} 34... Rd8
{[%clk 0:00:18.8]} 35. a5 {[%clk 0:00:46.2]} 35... Rb8 {[%clk 0:00:06.2]} 36.
Be3 {[%clk 0:00:45.6]} 36... Rb7 {[%clk 0:00:03.8]} 37. Bxc5 {[%clk 0:00:45.5]}
37... Kxe5 {[%clk 0:00:04]} 38. a6 {[%clk 0:00:41]} 38... Rc7 {[%clk 0:00:02.2]}
39. a7 {[%clk 0:00:39.4]} 39... Rxa7 {[%clk 0:00:02.3]} 40. Nbc4+ {[%clk
0:00:39.9]} 40... Kd5 {[%clk 0:00:02.5]} 41. Bxa7 {[%clk 0:00:40.8]} 41... Nxb3
{[%clk 0:00:02.6]} 42. Ne3+ {[%clk 0:00:40.8]} 42... Ke6 {[%clk 0:00:02.4]} 43.
Nxb3 {[%clk 0:00:41.7]} 43... Kd7 {[%clk 0:00:01.8]} 44. Ng2 {[%clk 0:00:42.6]}
1-0

[Event "Late-Titled-Tuesday-Blitz-May-07-2024"]
[Site "Chess.com"]
[Date "2024.05.07"]
[Round "1"]
[White "Durarbayli"]
[Black "HaryKane"]
[Result "1-0"]
[WhiteElo "2949"]
[BlackElo "2532"]
[TimeControl "180+1"]
[EndTime "14:07:05 PDT"]
[Termination "Durarbayli won by resignation"]

1. e4 {[%clk 0:03:00.9]} 1... e6 {[%clk 0:02:57.8]} 2. d4 {[%clk 0:02:59.7]}
2... d5 {[%clk 0:02:54.2]} 3. exd5 {[%clk 0:02:58.7]} 3... exd5 {[%clk
0:02:53.7]} 4. h3 {[%clk 0:02:59.6]} 4... c5 {[%clk 0:02:41.5]} 5. Nf3 {[%clk
0:02:57.5]} 5... c4 {[%clk 0:02:37.3]} 6. b3 {[%clk 0:02:53.5]} 6... cxb3 {[%clk
0:02:35.8]} 7. axb3 {[%clk 0:02:53.3]} 7... Bd6 {[%clk 0:02:36.1]} 8. Bd3 {[%clk
0:02:38.5]} 8... Ne7 {[%clk 0:02:34.3]} 9. O-O {[%clk 0:02:35.3]} 9... O-O
{[%clk 0:02:33.1]} 10. c4 {[%clk 0:02:35.4]} 10... Nbc6 {[%clk 0:02:12.9]} 11.
Nc3 {[%clk 0:02:33.4]} 11... Nb4 {[%clk 0:01:56.2]} 12. Bb1 {[%clk 0:02:29.3]}
12... dxc4 {[%clk 0:01:42.4]} 13. bxc4 {[%clk 0:02:26.6]} 13... Bf5 {[%clk
0:01:38]} 14. Ba3 {[%clk 0:02:21.7]} 14... a5 {[%clk 0:01:22.5]} 15. Ne4 {[%clk
0:01:58.1]} 15... Rc8 {[%clk 0:01:10.5]} 16. Qb3 {[%clk 0:01:35.8]} 16... Bb8
{[%clk 0:00:51.2]} 17. Bxb4 {[%clk 0:01:24.9]} 17... axb4 {[%clk 0:00:52.1]} 18.
Qxb4 {[%clk 0:01:25.8]} 18... Nc6 {[%clk 0:00:52.1]} 19. Qb2 {[%clk 0:01:14.4]}
19... Re8 {[%clk 0:00:43.7]} 20. Neg5 {[%clk 0:01:04.9]} 20... Qf6 {[%clk
0:00:28.1]} 21. Qxb7 {[%clk 0:00:57.6]} 21... h6 {[%clk 0:00:24.7]} 22. d5
{[%clk 0:00:35.3]} 22... Nd8 {[%clk 0:00:20.6]} 23. Qb5 {[%clk 0:00:19.7]} 23...
Re7 {[%clk 0:00:11.1]} 24. Bxf5 {[%clk 0:00:17.4]} 24... Qxf5 {[%clk 0:00:09.2]}
25. Rae1 {[%clk 0:00:17]} 25... Rxe1 {[%clk 0:00:07.2]} 26. Rxe1 {[%clk
0:00:17.9]} 26... hxg5 {[%clk 0:00:06]} 27. Qa6 {[%clk 0:00:10.3]} 27... g6
{[%clk 0:00:03.1]} 28. Re8+ {[%clk 0:00:09.5]} 28... Kg7 {[%clk 0:00:03]} 29.
Qa1+ {[%clk 0:00:10.4]} 29... Qf6 {[%clk 0:00:02.8]} 30. Rg8+ {[%clk 0:00:10.7]}
30... Kxg8 {[%clk 0:00:03.3]} 31. Qxf6 {[%clk 0:00:11.1]} 31... Nb7 {[%clk
0:00:02.3]} 32. Nxg5 {[%clk 0:00:11.1]} 32... Bd6 {[%clk 0:00:01.7]} 33. Qxf7+
{[%clk 0:00:10.9]} 1-0

[Event "Late-Titled-Tuesday-Blitz-May-07-2024"]
[Site "Chess.com"]
[Date "2024.05.07"]
[Round "1"]
[White "Godzillator"]
[Black "FoggyMorning"]
[Result "1-0"]
[WhiteElo "2348"]
[BlackElo "2634"]
[TimeControl "180+1"]
[EndTime "14:07:05 PDT"]
[Termination "Godzillator won by resignation"]

1. c4 {[%clk 0:01:49]} 1... e5 {[%clk 0:02:58.9]} 2. g3 {[%clk 0:01:47.5]} 2...
c6 {[%clk 0:02:58.5]} 3. Bg2 {[%clk 0:01:48]} 3... d5 {[%clk 0:02:59.1]} 4. cxd5
{[%clk 0:01:48.2]} 4... cxd5 {[%clk 0:03:00]} 5. d4 {[%clk 0:01:48.5]} 5... e4
{[%clk 0:03:00.7]} 6. Nc3 {[%clk 0:01:47.8]} 6... Nf6 {[%clk 0:03:01.4]} 7. Bg5
{[%clk 0:01:47.4]} 7... Nbd7 {[%clk 0:03:01.9]} 8. e3 {[%clk 0:01:47.8]} 8...
Be7 {[%clk 0:03:01.9]} 9. Nge2 {[%clk 0:01:48]} 9... O-O {[%clk 0:03:02.3]} 10.
O-O {[%clk 0:01:47.8]} 10... h6 {[%clk 0:02:50]} 11. Bxf6 {[%clk 0:01:47.3]}
11... Nxf6 {[%clk 0:02:50.9]} 12. Rc1 {[%clk 0:01:47]} 12... b6 {[%clk
0:02:49.3]} 13. Nf4 {[%clk 0:01:37.2]} 13... Ba6 {[%clk 0:02:37.4]} 14. Re1
{[%clk 0:01:36.4]} 14... g5 {[%clk 0:02:37.3]} 15. Nh5 {[%clk 0:01:32.9]} 15...
Qd7 {[%clk 0:02:29.6]} 16. Nxf6+ {[%clk 0:01:32.5]} 16... Bxf6 {[%clk
0:02:30.5]} 17. Qa4 {[%clk 0:01:24.6]} 17... Qxa4 {[%clk 0:02:14.5]} 18. Nxa4
{[%clk 0:01:25.5]} 18... Rfc8 {[%clk 0:02:03.4]} 19. Bh3 {[%clk 0:01:25.5]}
19... Rc4 {[%clk 0:01:59.6]} 20. b3 {[%clk 0:01:24.6]} 20... Rxc1 {[%clk
0:01:54.9]} 21. Rxc1 {[%clk 0:01:25.5]} 21... Be7 {[%clk 0:01:41.5]} 22. Bd7
{[%clk 0:01:23.2]} 22... Ba3 {[%clk 0:01:20.5]} 23. Rc7 {[%clk 0:01:22.5]} 23...
Bd6 {[%clk 0:01:19]} 24. Rc6 {[%clk 0:01:19.3]} 24... Bf8 {[%clk 0:01:15.6]} 25.
Rc7 {[%clk 0:01:19.3]} 25... Bd6 {[%clk 0:01:13.1]} 26. Rc6 {[%clk 0:01:11.6]}
26... Bf8 {[%clk 0:01:13]} 27. Rc7 {[%clk 0:01:11.7]} 27... Bb4 {[%clk
0:00:43.6]} 28. Bc6 {[%clk 0:01:09.3]} 28... Rc8 {[%clk 0:00:23.4]} 29. Rxc8+
{[%clk 0:01:07.8]} 29... Bxc8 {[%clk 0:00:24.3]} 30. Bxd5 {[%clk 0:01:07.7]}
30... Kg7 {[%clk 0:00:20.2]} 31. Bxe4 {[%clk 0:01:07.3]} 31... f5 {[%clk
0:00:21]} 32. Bd5 {[%clk 0:01:06.9]} 32... Kf6 {[%clk 0:00:21.3]} 33. Nb2 {[%clk
0:01:06.5]} 33... f4 {[%clk 0:00:21.4]} 34. Nc4 {[%clk 0:01:05.4]} 34... b5
{[%clk 0:00:17]} 35. Nb2 {[%clk 0:01:02.7]} 35... Bd6 {[%clk 0:00:16.3]} 36. Nd3
{[%clk 0:01:01.3]} 36... fxe3 {[%clk 0:00:16.4]} 37. fxe3 {[%clk 0:01:01.1]}
37... Kf5 {[%clk 0:00:15.6]} 38. Kg2 {[%clk 0:00:57.4]} 38... h5 {[%clk
0:00:15.4]} 39. e4+ {[%clk 0:00:55.7]} 39... Kg6 {[%clk 0:00:16]} 40. Ne5+
{[%clk 0:00:51.9]} 40... Bxe5 {[%clk 0:00:15.8]} 41. dxe5 {[%clk 0:00:52.1]}
41... g4 {[%clk 0:00:15.9]} 42. Kf2 {[%clk 0:00:50.9]} 42... Kg5 {[%clk
0:00:16]} 43. Ke3 {[%clk 0:00:51]} 43... h4 {[%clk 0:00:16.2]} 44. Kd4 {[%clk
0:00:50.7]} 44... a6 {[%clk 0:00:13.3]} 45. Kc5 {[%clk 0:00:50.8]} 45... Kg6
{[%clk 0:00:05.1]} 46. Kd6 {[%clk 0:00:50.9]} 46... Kg7 {[%clk 0:00:04.5]} 47.
e6 {[%clk 0:00:50.3]} 47... hxg3 {[%clk 0:00:05.1]} 48. hxg3 {[%clk 0:00:49.8]}
48... Kf8 {[%clk 0:00:05.3]} 49. e7+ {[%clk 0:00:50]} 1-0

[Event "Late-Titled-Tuesday-Blitz-May-07-2024"]
[Site "Chess.com"]
[Date "2024.05.07"]
[Round "1"]
[White "DominguezOnYoutube"]
[Black "MathiasWomacka"]
[Result "1-0"]
[WhiteElo "2994"]
[BlackElo "2541"]
[TimeControl "180+1"]
[EndTime "14:07:07 PDT"]
[Termination "DominguezOnYoutube won by resignation"]

1. e4 {[%clk 0:02:58.2]} 1... c5 {[%clk 0:02:59.3]} 2. Nf3 {[%clk 0:02:57.6]}
2... d6 {[%clk 0:02:59.6]} 3. d4 {[%clk 0:02:57.8]} 3... cxd4 {[%clk 0:03:00.5]}
4. Nxd4 {[%clk 0:02:58.1]} 4... Nf6 {[%clk 0:03:00.5]} 5. Nc3 {[%clk 0:02:58.7]}
5... a6 {[%clk 0:03:00.7]} 6. Be3 {[%clk 0:02:59.3]} 6... e5 {[%clk 0:03:00.1]}
7. Nb3 {[%clk 0:02:59.4]} 7... Be7 {[%clk 0:03:00]} 8. f3 {[%clk 0:02:58.8]}
8... Be6 {[%clk 0:02:58.4]} 9. Qd2 {[%clk 0:02:58.4]} 9... O-O {[%clk
0:02:58.2]} 10. O-O-O {[%clk 0:02:57.3]} 10... Nbd7 {[%clk 0:02:57.3]} 11. g4
{[%clk 0:02:57.1]} 11... b5 {[%clk 0:02:57.5]} 12. Rg1 {[%clk 0:02:55.6]} 12...
Nb6 {[%clk 0:02:55.6]} 13. Na5 {[%clk 0:02:54.8]} 13... Rc8 {[%clk 0:02:49.2]}
14. g5 {[%clk 0:02:53.1]} 14... Nh5 {[%clk 0:02:47.8]} 15. Kb1 {[%clk
0:02:41.5]} 15... g6 {[%clk 0:02:20]} 16. a3 {[%clk 0:02:37.8]} 16... Qc7 {[%clk
0:02:06.1]} 17. Nd5 {[%clk 0:02:36.8]} 17... Nxd5 {[%clk 0:01:44]} 18. exd5
{[%clk 0:02:37.7]} 18... Bxd5 {[%clk 0:01:43.9]} 19. Qxd5 {[%clk 0:02:37]} 19...
Qxa5 {[%clk 0:01:42.5]} 20. Rg4 {[%clk 0:02:37.1]} 20... Qc7 {[%clk 0:01:18.3]}
21. c4 {[%clk 0:02:25.2]} 21... bxc4 {[%clk 0:01:17]} 22. Rxc4 {[%clk
0:02:17.1]} 22... Qd7 {[%clk 0:01:14]} 23. Rxc8 {[%clk 0:02:07.6]} 23... Qxc8
{[%clk 0:01:13.7]} 24. Rc1 {[%clk 0:02:03.8]} 24... Qf5+ {[%clk 0:01:12.6]} 25.
Bd3 {[%clk 0:02:03.1]} 25... Qh3 {[%clk 0:01:12.4]} 26. Bxa6 {[%clk 0:01:47]}
26... Qxh2 {[%clk 0:01:09]} 27. Qb7 {[%clk 0:01:26.7]} 27... Bd8 {[%clk
0:01:05.1]} 28. Bc4 {[%clk 0:01:20.6]} 28... Nf4 {[%clk 0:01:02.2]} 29. a4
{[%clk 0:01:18.5]} 29... d5 {[%clk 0:00:55.1]} 30. Bxd5 {[%clk 0:01:01.6]} 30...
Nd3 {[%clk 0:00:52.7]} 31. Rc8 {[%clk 0:00:50.7]} 31... Qe2 {[%clk 0:00:43.9]}
32. Bc1 {[%clk 0:00:34.9]} 32... Nxc1 {[%clk 0:00:42.4]} 33. Rxd8 {[%clk
0:00:23.8]} 33... Qd3+ {[%clk 0:00:15.9]} 34. Kxc1 {[%clk 0:00:23.3]} 34... Qe3+
{[%clk 0:00:15.4]} 35. Kb1 {[%clk 0:00:18.2]} 35... Qd3+ {[%clk 0:00:15.2]} 36.
Ka2 {[%clk 0:00:17]} 1-0

[Event "Late-Titled-Tuesday-Blitz-May-07-2024"]
[Site "Chess.com"]
[Date "2024.05.07"]
[Round "1"]
[White "laskakid"]
[Black "Franmu14"]
[Result "0-1"]
[WhiteElo "2411"]
[BlackElo "2719"]
[TimeControl "180+1"]
[EndTime "14:07:07 PDT"]
[Termination "Franmu14 won by checkmate"]

1. e4 {[%clk 0:03:00.9]} 1... e5 {[%clk 0:02:58.9]} 2. Nf3 {[%clk 0:03:00.1]}
2... Nc6 {[%clk 0:02:59.8]} 3. d3 {[%clk 0:02:59.9]} 3... d5 {[%clk 0:02:57.4]}
4. Nbd2 {[%clk 0:02:53.4]} 4... Be6 {[%clk 0:02:50.9]} 5. Be2 {[%clk 0:02:49.2]}
5... f6 {[%clk 0:02:48.1]} 6. O-O {[%clk 0:02:48.4]} 6... Qd7 {[%clk 0:02:47.9]}
7. Re1 {[%clk 0:02:30.1]} 7... O-O-O {[%clk 0:02:47.1]} 8. exd5 {[%clk
0:02:26.8]} 8... Qxd5 {[%clk 0:02:46.6]} 9. Ne4 {[%clk 0:02:23]} 9... Kb8 {[%clk
0:02:45.2]} 10. c3 {[%clk 0:02:21.2]} 10... g5 {[%clk 0:02:44.2]} 11. b4 {[%clk
0:02:20.2]} 11... g4 {[%clk 0:02:42.6]} 12. Nfd2 {[%clk 0:02:18.9]} 12... f5
{[%clk 0:02:42.5]} 13. c4 {[%clk 0:01:51.7]} 13... Qd4 {[%clk 0:02:35.9]} 14.
Nb3 {[%clk 0:01:49.9]} 14... Qd7 {[%clk 0:02:34.9]} 15. Nec5 {[%clk 0:01:49.3]}
15... Bxc5 {[%clk 0:02:34.5]} 16. Nxc5 {[%clk 0:01:49.3]} 16... Qd6 {[%clk
0:02:33.5]} 17. Nxe6 {[%clk 0:01:36.2]} 17... Qxe6 {[%clk 0:02:34.4]} 18. b5
{[%clk 0:01:33]} 18... Nd4 {[%clk 0:02:33.1]} 19. Bf1 {[%clk 0:01:31.4]} 19...
Ne7 {[%clk 0:02:31.4]} 20. Bb2 {[%clk 0:01:22.5]} 20... Ng6 {[%clk 0:02:25]} 21.
a4 {[%clk 0:01:15.6]} 21... Qf6 {[%clk 0:02:23.5]} 22. a5 {[%clk 0:01:14.2]}
22... Nh4 {[%clk 0:02:22.6]} 23. Bxd4 {[%clk 0:01:06]} 23... Rxd4 {[%clk
0:02:21.1]} 24. b6 {[%clk 0:00:52.4]} 24... cxb6 {[%clk 0:02:17.8]} 25. axb6
{[%clk 0:00:52.3]} 25... a6 {[%clk 0:02:17.9]} 26. c5 {[%clk 0:00:44.9]} 26...
Rg8 {[%clk 0:02:17.6]} 27. Kh1 {[%clk 0:00:36.1]} 27... e4 {[%clk 0:02:09]} 28.
Ra4 {[%clk 0:00:34.6]} 28... Rgd8 {[%clk 0:01:23.1]} 29. Rxd4 {[%clk 0:00:28.1]}
29... Qxd4 {[%clk 0:01:24]} 30. Qb3 {[%clk 0:00:20.7]} 30... Qxf2 {[%clk
0:01:21.3]} 31. Rc1 {[%clk 0:00:16.8]} 31... Qe3 {[%clk 0:00:40.6]} 32. Qf7
{[%clk 0:00:13.5]} 32... Rc8 {[%clk 0:00:38.6]} 33. c6 {[%clk 0:00:11.1]} 33...
Qxb6 {[%clk 0:00:34.5]} 34. dxe4 {[%clk 0:00:03.1]} 34... Rxc6 {[%clk
0:00:30.2]} 35. Rxc6 {[%clk 0:00:02.1]} 35... Qxc6 {[%clk 0:00:30.8]} 36. exf5
{[%clk 0:00:02.5]} 36... Qc1 {[%clk 0:00:23.5]} 37. Qe8+ {[%clk 0:00:01.9]}
37... Ka7 {[%clk 0:00:23.7]} 38. Qe5 {[%clk 0:00:02.1]} 38... Qxf1# {[%clk
0:00:22.9]} 0-1